Cogmind - Beta 14 @@@ ROGUE MODE // 2024.08.07 @ 10:33:33 Player: omewwes Result: Destroyed by Autobeam Turret with Autobeam Performance ------------- Evolutions (0) 0 Regions Visited (2) 400 Robots Destroyed (18) 90 Value Destroyed (565) 565 Prototype IDs (2) 40 Alien Tech Used (0) 0 Bonus (0) 0 TOTAL SCORE: 1095 Bonus ------- None Cogmind --------- Core Integrity 0/250 Matter 47/300 Energy 98/100 System Corruption 0% Temperature Cool (7) Movement Treading (160) Location -10/Subcaves Parts ------- > --- POWER (1) -------- (None) > --- PROPULSION (2) --- Spiked Treads > --- UTILITY (2) ------ (None) > --- WEAPON (2) ------- Barrage Gun Slug Cannon > --- INVENTORY (5) ---- Subdweller Power Source Subdweller Monowheel Makeshift Hacking Suite Subdweller Beam Cannon Peak State ------------ > --- POWER ------------ Ion Engine > --- PROPULSION ------- Spiked Treads Spiked Treads > --- UTILITY ---------- Scrap Shield > --- WEAPON ----------- Barrage Gun Slug Cannon > --- INVENTORY -------- Light Ion Engine Subdweller Power Source Subdweller Monowheel Makeshift Hacking Suite Subdweller Beam Cannon [Rating: 17] Favorites ----------- Power Ion Engine Engine Ion Engine Propulsion Spiked Treads Treads Spiked Treads Utility Medium Storage Unit Device Heat Sink Storage Medium Storage Unit Protection Scrap Shield Weapon Slug Cannon Energy Gun Subdweller Laser Energy Cannon Light EM Pulse Cannon Ballistic Gun Barrage Gun Ballistic Cannon Slug Cannon Special Weapon Plasma Cutter Build | -11 -10 -10 ------- Run | Yrd Mat Sub Slots Evolved . | . . . Power . | . . . Propulsion . | . . . Utility . | . . . Weapon . | . . . Parts Attached 32 | 7 6 19 Power 4 | 2 . 2 Engine 4 | 2 . 2 Core . | . . . Reactor . | . . . Propulsion 4 | 2 . 2 Treads 4 | 2 . 2 Leg . | . . . Wheel . | . . . Hover . | . . . Flight . | . . . Utility 5 | 1 2 2 Device 1 | . 1 . Storage 2 | 1 1 . Processor . | . . . Hackware . | . . . Protection 2 | . . 2 Artifact . | . . . Weapon 19 | 2 4 13 Energy Gun 7 | 1 3 3 Energy Cannon 5 | . 1 4 Ballistic Gun 3 | 1 . 2 Ballistic Cannon 3 | . . 3 Launcher . | . . . Special Weapon 1 | . . 1 Impact Weapon . | . . . Slashing Weapon . | . . . Piercing Weapon . | . . . Special Melee Weapon . | . . . Unidentified Prototypes . | . . . Parts Lost 4 | . . 4 Power 1 | . . 1 Propulsion 1 | . . 1 Utility 1 | . . 1 Weapon 1 | . . 1 Highest Loss Streak 2 | . . 2 To Critical Strikes . | . . . Average Slot Usage (%) 92 | . 96 91 Engine 13 | . 14 13 Treads 28 | . 28 28 Device 5 | . 10 3 Storage 8 | . 14 6 Protection 7 | . . 9 Energy Gun 8 | . 24 5 Energy Cannon 6 | . 1 7 Ballistic Gun 5 | . 2 6 Ballistic Cannon 6 | . . 8 Peak Build Rating 17 | 6 8 17 Average Rating 12 | 4 6 13 On Entrance 4 | . 6 8 Naked Turns . | . . . Heaviest Build 38 | 13 23 38 Greatest Support 40 | 40 40 40 Greatest Overweight (x) . | . . . Average Overweight (x) . | . . . Largest Inventory Capacity 10 | 8 10 10 Average Capacity 7 | 7 9 7 Most Carried 10 | 1 5 10 Average Carried 5 | . 2 5 Final Capacity 10 | 8 10 5 Final Carried 5 | 1 5 4 Class Distribution -------------------- 52% | Mutant 47% | Derelict-Mutant Dominant Class ---------------- Mutant | -10/Materials Derelict-Mutant | -10/Subcaves Resources | -11 -10 -10 ----------- Run | Yrd Mat Sub Matter Collected 715 | 225 95 395 Remotely . | . . . Salvage Created 668 | . 113 555 Parts 40 | . 6 34 Haulers Intercepted . | . . . Recyclers Shooed . | . . . Parts Field Recycled . | . . . Retrieved Matter . | . . . Parts Self-Destructed 15 | . . 15 Prevented 3 | . . 3 Kills | -11 -10 -10 ------- Run | Yrd Mat Sub Combat Hostiles Destroyed 17 | . 2 15 Guns 4 | . 2 2 Cannons 10 | . . 10 AOE 1 | . . 1 Classes Destroyed 5 | . 2 3 Watcher 1 | . 1 . Swarmer 4 | . . 4 Grunt 4 | . 2 2 Cobbler 1 | . . 1 Subdweller 9 | . . 9 Best Kill Streak 4 | . 2 4 Combat Bots Only 4 | . 2 4 Max Kills in Single Turn 1 | . 1 1 Gunslinging . | . . . Exploded 1 | . . 1 Melee . | . . . Uniques/NPCs Destroyed . | . . . Combat | -11 -10 -10 -------- Run | Yrd Mat Sub Hostile Shots Fired 169 | . 16 153 Missed 53 | . 3 50 Damage Taken 1506 | . 143 1363 Core 252 | . 45 207 Absorbed by Shields . | . . . Core Remaining (%) 100 | 100 . . Volleys Fired 124 | . 11 113 Largest 2 | . 2 2 Hottest 140 | . 90 140 Shots Fired 220 | . 22 198 Gun 119 | . 22 97 Cannon 96 | . . 96 Launcher . | . . . Special 5 | . . 5 Kinetic 93 | . . 93 Thermal 93 | . 11 82 Explosive . | . . . Electromagnetic 34 | . 11 23 Robot Hit Streak 21 | . 5 21 Robot Miss Streak 3 | . 2 3 Penetration Max . | . . . Secondary Targets . | . . . Shots Hit Robots 102 | . 14 88 Core Hits 32 | . 5 27 Critical Kills 1 | . . 1 Critical Parts Destroyed 1 | . . 1 Critical Strikes 3 | . . 3 Destroy 3 | . . 3 Melee Attacks . | . . . Impact . | . . . Slashing . | . . . Piercing . | . . . Sneak Attacks . | . . . Combat Hostiles . | . . . Follow-up Attacks . | . . . Damage Inflicted 2127 | . 214 1913 Guns 1087 | . 214 873 Cannons 934 | . . 934 Explosions 106 | . . 106 Melee . | . . . Ramming . | . . . Kinetic 952 | . . 952 Thermal 687 | . 89 598 Explosive . | . . . Electromagnetic 488 | . 125 363 Impact . | . . . Slashing . | . . . Piercing . | . . . Highest Corruption . | . . . Average Corruption . | . . . Corruption Purged . | . . . Corruption Blocked . | . . . Overload Shots . | . . . Overflow Damage . | . . . Projectiles . | . . . Explosions . | . . . Melee . | . . . Knockbacks 2 | . . 2 Impact . | . . . Kinetic 2 | . . 2 Secondary . | . . . Self-Inflicted Damage 56 | . . 56 Shots 1 | . . 1 Rammed . | . . . Targets Rammed . | . . . Kicked . | . . . Crushed . | . . . Highest Temperature 378 | . 378 219 Average Temperature 89 | . 182 30 Received Heat Transfer 728 | . 78 650 Effects 1 | . 1 . Shutdowns 1 | . 1 . Siege Activations . | . . . Robots Corrupted 2 | . . 2 Combat Hostiles 2 | . . 2 Parts Fried 2 | . . 2 Impact Corruptions . | . . . Robots Melted . | . . . Combat Hostiles . | . . . Parts Melted 4 | . 3 1 Heat Transferred 1167 | . 259 908 Parts Sabotaged . | . . . Parts Stolen . | . . . Parts Stripped . | . . . Power Chain Reactions 2 | . . 2 Alert | -11 -10 -10 ------- Run | Yrd Mat Sub Peak Influence 57 | . 57 . Initial . | . . . Average 18 | . 19 . Maximum Alert Level . | . . . Low Security (%) 100 | 100 100 . Level 1 . | . . . Level 2 . | . . . Level 3 . | . . . Level 4 . | . . . Level 5 . | . . . High Security . | . . . Max Security . | . . . Squads Dispatched 1 | . 1 . Investigation . | . . . Extermination . | . . . Reinforcement 1 | . 1 . Assault . | . . . Garrison . | . . . Intercept . | . . . Searches Triggered . | . . . Construction Impeded . | . . . Haulers Reinforced . | . . . Active Scanning Responses . | . . . Cargo Convoy Interrupts . | . . . Stealth | -11 -10 -10 --------- Run | Yrd Mat Sub Distress Signals 1 | . 1 . Communications Jammed . | . . . Distress Signals . | . . . Times Spotted 26 | . 3 23 Peak Tracking Total 4 | . 2 4 Tactical Retreats 3 | . . 3 Traps | -11 -10 -10 ------- Run | Yrd Mat Sub Traps Triggered 2 | . . 2 Indirectly . | . . . Trap Hack Attempts . | . . . Triggered . | . . . Disarmed . | . . . Reprogrammed . | . . . Reused . | . . . Traps Extracted . | . . . Installed . | . . . Triggered . | . . . Machines | -11 -10 -10 ---------- Run | Yrd Mat Sub Machines Disabled . | . . . Max in Single Turn . | . . . Machines Repaired . | . . . Machines Dismantled . | . . . Machines Sabotaged . | . . . Overloaded Fab Kills . | . . . Hacking | -11 -10 -10 --------- Run | Yrd Mat Sub Machines Accessed 4 | . 1 3 Terminals 1 | . 1 . Fabricators . | . . . Repair Stations . | . . . Recycling Units . | . . . Scanalyzers . | . . . Garrison Access . | . . . Total Hacks 9 | . 2 7 Successful 9 | . 2 7 Failed . | . . . Catastrophic . | . . . Database Lockouts . | . . . Manual . | . . . Terminals 2 | . 2 . Fabricators . | . . . Repair Stations . | . . . Recycling Units . | . . . Scanalyzers . | . . . Garrison Access . | . . . Terminal Hacks 9 | . 2 7 Record 5 | . . 5 Prototype ID Bank 1 | . 1 . Open Door 1 | . . 1 Hauler Manifests 1 | . 1 . Release Object 1 | . . 1 Fabricator Hacks . | . . . Repair Station Hacks . | . . . Recycling Unit Hacks . | . . . Scanalyzer . | . . . Garrison Access Hacks . | . . . Unauthorized Hacks . | . . . Terminals . | . . . Fabricators . | . . . Repair Stations . | . . . Recycling Units . | . . . Scanalyzers . | . . . Garrison Access . | . . . Data Cores Recovered . | . . . Used . | . . . Hacking Detections 1 | . 1 . Full Trace Events . | . . . Feedback Events . | . . . Feedback Blocked . | . . . Robot Schematics Acquired . | . . . Robots Built . | . . . Authchips . | . . . Time . | . . . Total Robot Build Rating . | . . . Part Schematics Acquired . | . . . Parts Built . | . . . Authchips . | . . . Time . | . . . Total Part Build Rating . | . . . Parts Repaired . | . . . Time . | . . . Parts Recycled . | . . . Recycled Matter . | . . . Retrieved Matter . | . . . Retrieved Components . | . . . Parts Scanalyzed . | . . . Part Schematics Acquired . | . . . Parts Damaged . | . . . Bothacking | -11 -10 -10 ------------ Run | Yrd Mat Sub Used RIF Installer . | . . . Robots Hacked . | . . . Non-combat . | . . . Combat . | . . . Robot Hacks Applied . | . . . Relay Couplers Released . | . . . Fabnet Peak Effective % . | . . . Robots Rewired . | . . . Allies Hacked . | . . . Hacks Repelled . | . . . Allies | -11 -10 -10 -------- Run | Yrd Mat Sub Total Allies . | . . . Largest Group . | . . . Highest-Rated Group . | . . . Highest-Rated Ally . | . . . Total Orders . | . . . Ally Attacks . | . . . Total Damage . | . . . Kills . | . . . Allies Corrupted . | . . . Allies Melted . | . . . Intel | -11 -10 -10 ------- Run | Yrd Mat Sub Robot Analysis Total . | . . . Derelict Logs Recovered . | . . . Drone Launches . | . . . Drone Recoveries . | . . . Exploration | -11 -10 -10 ------------- Run | Yrd Mat Sub Turns Passed 4555 | 74 780 3701 Spaces Moved 2389 | 47 322 2020 Core 10 | 10 . . Treads 2379 | 37 322 2020 Legs . | . . . Wheels . | . . . Hover . | . . . Flight . | . . . Fastest Speed 50 | 50 160 160 Average Speed 159 | 136 160 160 Slowest Speed 160 | 160 160 160 Overloaded Moves . | . . . Propulsion Burnouts . | . . . Robots Hopped . | . . . Cave-ins Triggered . | . . . Exploration Rate (%) 42 | 4 35 89 Regions Visited 2 Branch Regions 1 Pre-discovered Areas 1 | . . 1 Known Exits Taken . | . . . Unknown Exits Taken 2 | 1 1 . Scrap Searched 13 | . . 13 Spaces Dug 9 | . . 9 Terrain Destroyed 28 | . . 28 Melee . | . . . Projectile 20 | . . 20 AOE 8 | . . 8 Terrain Rammed . | . . . Walls Destroyed . | . . . Machines Disabled . | . . . Actions | -11 -10 -10 --------- Run | Yrd Mat Sub Total 2902 | 53 564 2285 Wait 309 | . 214 95 Move 2387 | 46 321 2020 Hop . | . . . Pick Up 17 | . 7 10 Fast Attach 16 | 6 2 8 Attach 1 | . . 1 Detach 7 | . 1 6 Swap 15 | 1 4 10 Drop 18 | . 4 14 Fire 124 | . 11 113 Melee . | . . . Ram . | . . . Kick . | . . . Crush . | . . . Escape Stasis . | . . . Rewire . | . . . Trap . | . . . Miscellaneous 8 | . . 8 Route ------- -11/Scrapyard -10/Materials (discovered 2 exits: [*Mat] / *Sub) -10/Subcaves (discovered 3 exits: [*Mat x2] / [*Rec]) History --------- Turn | Location | Event 6 | -11/Scrapyard | Discovered new exit (range 16) 75 | -11/Scrapyard | Entered Materials 306 | -10/Materials | Build established: Mutant 591 | -10/Materials | Discovered new exit (range 8) 835 | -10/Materials | Discovered new exit (range 5) 855 | -10/Materials | Entered Subcaves 1071 | -10/Subcaves | Visited Clippyterm 1076 | -10/Subcaves | Learned Factory trap positions 1409 | -10/Subcaves | Ambushed by Subdwellers from Twisted Machinery 1413 | -10/Subcaves | Core integrity fell below 50% 1504 | -10/Subcaves | Discovered new exit (range 13) 1872 | -10/Subcaves | A swath of the cavern ceiling suddenly collapsed 1969 | -10/Subcaves | Shifting Twisted Machinery released Sub. Beam Cannon 2266 | -10/Subcaves | Shifting Twisted Machinery released Flamer 2268 | -10/Subcaves | Shifting Twisted Machinery released Battle Rifle 2539 | -10/Subcaves | Shifting Twisted Machinery released Sub. Monowheel 2655 | -10/Subcaves | Build established: Derelict-Mutant 2855 | -10/Subcaves | Learned location of Zion (-7) 2855 | -10/Subcaves | Met a Zionite searching for "candidates" 3261 | -10/Subcaves | A swath of the cavern ceiling suddenly collapsed 3784 | -10/Subcaves | Discovered new exit (range 5) 4361 | -10/Subcaves | Core integrity fell below 20% 4424 | -10/Subcaves | Released subatomizers from SUBCON Basin 4548 | -10/Subcaves | Discovered new exit (range 9) 4556 | -10/Subcaves | Destroyed by Autobeam Turret with Autobeam Last Messages --------------- especially when stimulated during the collection process in preparation for SEP insertion. Secure containment is priority number one! Although mostly just a persistent nuisance in their natural Subcaves environment where a certain balance has been achieved, there is a high probability that sudden introduction into previously unexposed areas could cause more extreme side effects. Take all precautions to prevent this from happening. >>Release Inventory Accessing inventory controls... Collection purity confirmed 100%... Ejecting SUBCON Basin... Delivery behind schedule, handle with care! 04424_ Released subatomizers from SUBCON Basin. 04548_ EXIT=FOUND 04548_ Ion Engine destroyed. 04550_ Spk. Treads destroyed. Map ----- +----------------------------------------------------+ | ???????????????????#####????????????????????????## | | ????????????????#### ##?????????????####????## | | ????????????????# ##????????????# ##?? | | ????????????????## #???????????## ### | | ??????#######??### #???????????# | | ??????#"""""#?## ## #?????####????# | | ??????#"X "### # #?##### ##??## #? | | ??????#""& "#" # # #### #### ##? | | ??????#"" "#" # ### ### #?? | | ??????#"" ## ## ## #??# #?? | | ??????#"" "#"X### ### ### ###??? ? | | ??????########## ### ##?####?????? | | ???????????????## # #### #????????????? | | ????????????#### ## # ## #?????????????? | | ???????????## ###??????????????? | | ??????????## ### #????????????????? | | ??????????# #"###?###????????????????? | | ??????????# ## # ##??????????????????????? | | ??????????##### ## ####???????????????????????? | | ??????#####??##"## ##??????????????????????????? | | ?????## ###"## #########????????????????????? | | ?????# ### ##" """#????????????????????? | | ?????## ## ## "#????????????????????? | | ??????# ### ## "#????????????????????? | | ?????????## t""##???????????????????? | | ????????## @ <#???????????????????? | | ???????## t""##???????????????????? | | ???????# # "#????????????????????? | | ???????# % "## "#????????????????????? | | ???????# #;; " #" """#????????????????????? | | ??????# ### #########???????????????????? | | ??????### #?#### # #???????????????????? | | ??????######??## # #????????????????????? | | ?????## #???## #????????????????????? | | ?????# #### #????????????????????? | | ?????# # ## #????????????????????? | | ?????# #### ##????????????????????? | | ?????# ### #?????????????????????? | | ??????# ## ######????????????????# | | ??????## #### ## ##?????????????## | | ??????## #??## ## #????????????## | | ??????# #### #### #????????????# | | ??????# ##### ##????????????# | | ??????## #?## ###?####????????# | | ??????## ## #??#####??## #???????## | | ??????# ## ### #####??#### ##?????## | | ??????## #####?# ## #?## ##????# | | ???????# ##????# ### ###??## | | ???????# ##???# ##??## | | ??????## #???## ##?## | +----------------------------------------------------+ Best States ------------- Heat Dissipation 35 Energy Generation 15 Energy Capacity 250 Matter Stores 300 Matter Capacity 300 Sight Range 16 Terrain Scan Density 10 Armor Coverage 800 Resistance: KI 10 Evasion (%) 40 Recoil Reduction 2 Item Schematics ----------------- None Robot Schematics ------------------ None Fabricated ------------ Nothing Alien Tech Used ----------------- None Achievements -------------- None Challenges ------------ None Game ------ Seed PhaseTitaniumBarrier Manual? 0 Play Time 00:25:41 Cumulative 89.1 hours Start 2024.08.07 @ 10:04:08 End 2024.08.07 @ 10:33:33 Sessions 1 Manual Loads 0 Difficulty Rogue Special Mode None Game No. 78 Rogue 78 Adventurer 0 Explorer 0 Win Type - Total 1 Types 1/0/0/0/0/0/0/0/0 Lore% 42 Gallery% 63 Achievement% 59 Wizard Run 0 Options --------- Layout 1 ASCII 0 Keyboard 1 Movement Vi Keybinds 0 Fullscreen 1 Font 24/Smallcaps Map View 50x35 Zoom Use 0% Tactical HUD 1 Map Filters NONE Filters NONE Steam 1 RUN: 049915d7-e768-4b93-8bf2-67e77f5053a7